bitfinex/quotes_BTCUSD_20230403
["timestamp","ask_amount","ask_price","bid_price","bid_amount"]
[1680554542552,0.02488,27792.0,27791.0,0.04024]
[1680554542821,0.02288,27792.0,27791.0,0.04024]
[1680554543067,0.02488,27792.0,27791.0,0.05954]
[1680554543301,0.02488,27792.0,27791.0,0.92711439]
[1680554543768,0.02288,27794.0,27791.0,0.92711439]
[1680554543994,0.02288,27794.0,27792.0,0.022316]
[1680554544213,0.02288,27794.0,27792.0,0.428506]
[1680554544442,0.02288,27794.0,27793.0,0.022342]
[1680554544681,0.02288,27795.0,27794.0,0.19929038]
[1680554544911,0.02288,27795.0,27794.0,0.74314438]
[1680554545808,0.02288,27795.0,27794.0,0.94923955]
[1680554546030,0.02288,27795.0,27794.0,1.64923955]
[1680554546276,0.02288,27795.0,27794.0,1.67723955]
[1680554548167,0.02288,27795.0,27794.0,1.67723955]
[1680554548401,0.02288,27795.0,27794.0,1.68713955]
[1680554550969,0.02288,27795.0,27794.0,1.67863955]
[1680554551212,0.02288,27795.0,27794.0,1.59213955]
[1680554551441,0.02288,27795.0,27794.0,1.56413955]
[1680554551665,0.02288,27795.0,27794.0,1.59213955]
[1680554553899,0.02288,27795.0,27794.0,1.57263955]
[1680554554423,0.02288,27795.0,27794.0,1.60063955]
[1680554554642,0.02288,27795.0,27794.0,2.30081955]
[1680554554867,0.02288,27797.0,27794.0,2.30081955]
[1680554555091,0.02288,27797.0,27796.0,0.3795]
[1680554555315,0.02288,27797.0,27796.0,0.528856]
[1680554555539,0.02282,27797.0,27796.0,0.538756]
[1680554555763,0.03728,27798.0,27797.0,0.7795]
[1680554555976,0.03728,27798.0,27797.0,1.210332]
[1680554557320,0.03728,27798.0,27797.0,1.235332]
[1680554558072,0.03728,27798.0,27797.0,1.39637846]
[1680554558168,0.03728,27798.0,27797.0,1.42437846]
[1680554558400,0.03728,27798.0,27797.0,1.39637846]
[1680554558846,0.03728,27798.0,27797.0,1.41447846]
[1680554559300,0.00070962,27800.0,27799.0,0.3795]
[1680554559531,0.00070962,27800.0,27799.0,0.45656]
[1680554560441,0.028201,27803.0,27799.0,0.45656]
[1680554560711,0.00070962,27802.0,27800.0,0.023877]
[1680554560938,0.00070962,27802.0,27801.0,0.017984]
[1680554561166,0.00070962,27802.0,27801.0,0.420195]
[1680554561617,0.00070962,27802.0,27801.0,0.022711]
[1680554561877,0.00070962,27802.0,27798.0,0.77968]
[1680554561878,0.00070962,27802.0,27799.0,0.023087]
[1680554562095,0.00070962,27802.0,27801.0,0.017984]
[1680554562312,0.00070962,27802.0,27801.0,0.041654]
[1680554562756,0.00070962,27802.0,27801.0,0.04167]
[1680554562977,0.00070962,27802.0,27801.0,0.059654]
[1680554563450,0.00070962,27802.0,27801.0,0.04167]
[1680554564320,0.028201,27803.0,27802.0,0.57879038]
[1680554564604,0.02288,27804.0,27803.0,0.7795]
[1680554564833,0.03288,27805.0,27804.0,0.4]
[1680554565040,0.02347963,27809.0,27805.0,0.7795]
[1680554565272,0.02271001,27807.0,27806.0,0.041944]
[1680554565749,0.02347963,27809.0,27807.0,0.4]
[1680554565986,0.02347963,27809.0,27808.0,0.420055]
[1680554566220,0.02347963,27809.0,27808.0,0.808255]
[1680554567609,0.02347963,27809.0,27808.0,1.218355]
[1680554567836,0.02347963,27809.0,27808.0,1.246355]
[1680554568277,0.02347963,27809.0,27808.0,1.254855]
[1680554568568,0.02277001,27811.0,27810.0,0.3795]
[1680554568802,0.02277001,27811.0,27810.0,0.465885]
[1680554569237,0.02277001,27811.0,27810.0,0.6359995]
[1680554569452,0.02277001,27811.0,27810.0,0.65380621]
[1680554569680,0.02277001,27811.0,27810.0,0.6359995]
[1680554570150,0.02271001,27811.0,27810.0,0.6359995]
[1680554570820,0.02271001,27811.0,27810.0,0.6639995]
[1680554571043,0.02271001,27811.0,27810.0,0.6359995]
[1680554571256,0.02271001,27811.0,27810.0,0.6639995]
[1680554572863,0.14189681,27811.0,27810.0,0.6015625]
[1680554573143,0.02277001,27812.0,27810.0,0.045979]
[1680554573404,0.02277001,27812.0,27810.0,0.435279]
[1680554573958,0.14189681,27811.0,27810.0,0.0098]
[1680554574182,0.14189681,27811.0,27807.0,0.00018]
[1680554574183,0.44323463,27809.0,27807.0,0.00018]
[1680554574475,0.58513144,27809.0,27805.0,0.70018]
[1680554575019,0.03701274,27808.0,27805.0,0.7]
[1680554575298,0.04798074,27808.0,27807.0,0.025]
[1680554575549,0.48576874,27808.0,27800.0,1.999365]
[1680554575806,0.0024,27806.0,27805.0,0.028]
[1680554576562,0.04798074,27808.0,27805.0,0.045982]
[1680554576563,0.03719274,27808.0,27805.0,0.045982]
[1680554576568,0.03719274,27808.0,27807.0,0.15140058]
[1680554576839,0.03719274,27808.0,27806.0,0.3795]
[1680554577115,0.03396562,27808.0,27806.0,0.3795]
[1680554577694,0.03396562,27808.0,27805.0,0.3795]
[1680554577976,0.03396562,27808.0,27806.0,0.4045]
[1680554578498,0.03396562,27808.0,27806.0,0.3795]
[1680554579342,0.04475362,27808.0,27804.0,0.00018]
[1680554579619,0.04475362,27808.0,27805.0,0.028]
[1680554579862,0.11570995,27808.0,27805.0,0.028]
[1680554580090,0.034356,27807.0,27806.0,0.025]
[1680554580340,0.034356,27807.0,27803.0,0.3882]
[1680554580589,0.15268481,27807.0,27804.0,0.025]
[1680554580859,0.035778,27806.0,27803.0,0.3882]
[1680554581120,0.010789,27806.0,27805.0,0.018]
[1680554581390,0.034754,27806.0,27803.0,0.38838]
[1680554581693,0.023531,27805.0,27803.0,0.41638]
[1680554581999,0.032368,27804.0,27803.0,0.02818]
[1680554582268,0.024899,27804.0,27803.0,0.028]
[1680554582548,0.024899,27804.0,27799.0,0.37968]
[1680554582810,0.14189681,27803.0,27799.0,0.00018]
[1680554583299,0.14189681,27803.0,27798.0,0.00018]
[1680554583569,0.14189681,27803.0,27799.0,0.028]
[1680554583836,0.4430881,27805.0,27799.0,0.00018]
[1680554584106,0.4322991,27805.0,27799.0,0.159]
[1680554584401,0.4322991,27805.0,27799.0,0.14018]
[1680554584402,0.4430881,27805.0,27799.0,0.14018]
[1680554584612,0.58498491,27805.0,27799.0,0.14018]
[1680554584832,0.024006,27804.0,27799.0,0.14018]
[1680554585068,0.75977238,27805.0,27799.0,0.00018]
[1680554585293,0.75977238,27805.0,27799.0,0.159]
[1680554585514,0.75977238,27805.0,27799.0,0.14018]
[1680554585993,0.4322991,27805.0,27800.0,0.14]
[1680554585996,0.4322991,27805.0,27799.0,0.556666]
[1680554586266,0.4322991,27805.0,27799.0,0.53868]
[1680554586531,0.57419591,27805.0,27799.0,0.53868]
[1680554586803,0.25837095,27805.0,27799.0,0.53868]
[1680554587207,0.11647414,27805.0,27800.0,0.14]
[1680554587210,0.11647414,27805.0,27799.0,0.556666]
[1680554587585,0.11647414,27805.0,27800.0,0.3795]
[1680554587811,0.11647414,27805.0,27801.0,0.14]
[1680554588055,0.0322991,27805.0,27802.0,0.3795]
[1680554588310,0.0322991,27805.0,27803.0,0.433766]
[1680554588544,0.0322991,27805.0,27804.0,0.03533]
[1680554589225,0.0322991,27805.0,27802.0,0.76788]
[1680554589458,0.0372991,27805.0,27803.0,0.001]
[1680554589745,0.0322991,27805.0,27804.0,0.019]
[1680554590181,0.0322991,27805.0,27804.0,0.450603]
[1680554590406,0.0322991,27805.0,27804.0,0.4328]
[1680554590627,0.0322991,27805.0,27804.0,0.4138]
[1680554590853,0.0322991,27805.0,27804.0,0.00018]
[1680554591295,0.0322991,27805.0,27804.0,0.01918]
[1680554592649,0.0322991,27805.0,27804.0,0.019]
[1680554592650,0.0272991,27805.0,27804.0,0.019]
[1680554592883,0.02926842,27805.0,27804.0,0.019]
[1680554593733,0.24245742,27805.0,27804.0,0.019]
[1680554593966,0.35173846,27805.0,27804.0,0.019]
[1680554594665,0.02944842,27805.0,27804.0,0.019]
[1680554596073,0.05412942,27805.0,27804.0,0.019]
[1680554598091,0.02944842,27805.0,27804.0,0.019]
[1680554599015,0.06602742,27805.0,27804.0,0.019]
[1680554599704,0.06602742,27805.0,27802.0,0.3882]
[1680554599929,0.0017,27803.0,27802.0,0.3882]
[1680554600265,0.057575,27803.0,27802.0,0.3882]
[1680554600505,0.057575,27803.0,27801.0,0.00018]
[1680554600506,0.2,27802.0,27801.0,0.00018]
[1680554600742,0.2,27802.0,27800.0,0.00012]
[1680554600743,0.90294081,27802.0,27800.0,0.00012]
[1680554601012,0.2,27799.0,27794.0,0.00018]
[1680554601295,0.0017,27795.0,27794.0,0.00018]
[1680554601541,0.17597581,27795.0,27793.0,0.70018]
[1680554601783,0.02897,27794.0,27793.0,0.70018]
[1680554602024,0.02897,27794.0,27793.0,0.00018]
[1680554602260,0.0017,27794.0,27790.0,0.18087637]
[1680554602493,0.0017,27793.0,27790.0,0.00018]
[1680554602726,0.0017,27793.0,27789.0,0.00018]
[1680554603187,0.0017,27793.0,27790.0,0.026]
[1680554603655,0.0017,27793.0,27790.0,0.3795]
[1680554603885,0.012492,27797.0,27790.0,0.37968]
[1680554604107,0.012492,27797.0,27791.0,0.14]
[1680554604334,0.001,27793.0,27791.0,0.14]
[1680554604576,0.012492,27797.0,27792.0,0.032594]
[1680554604797,0.012492,27797.0,27792.0,0.14]
[1680554605497,0.012492,27797.0,27791.0,0.40018]
[1680554605498,0.001,27793.0,27791.0,0.40018]
[1680554605722,0.012492,27797.0,27792.0,0.413474]
[1680554605949,0.0027,27797.0,27792.0,0.5315]
[1680554606175,0.0017,27797.0,27793.0,0.4]
[1680554606482,0.012492,27797.0,27793.0,0.4]
[1680554606642,0.001,27793.0,27792.0,0.00018]
[1680554606872,0.010793,27795.0,27792.0,0.033867]
[1680554607145,0.010793,27795.0,27792.0,0.045867]
[1680554607406,0.03545247,27796.0,27791.0,0.78838]
[1680554607632,0.02465947,27796.0,27793.0,0.006]
[1680554607855,0.03545247,27796.0,27793.0,0.006]
[1680554608542,0.03545247,27796.0,27791.0,0.78838]
[1680554608682,0.001,27795.0,27792.0,0.034048]
[1680554608914,0.010793,27795.0,27791.0,0.38838]
[1680554609143,0.010793,27795.0,27793.0,0.005]
[1680554609352,0.010793,27795.0,27791.0,0.38838]
[1680554609565,0.010793,27795.0,27792.0,0.012]
[1680554609768,0.010793,27795.0,27791.0,0.38838]
[1680554609984,0.00146117,27794.0,27793.0,0.005]
[1680554610278,0.01225417,27794.0,27793.0,0.005]
[1680554610476,0.01225417,27794.0,27791.0,0.38838]
[1680554610903,0.010793,27794.0,27791.0,0.38838]
[1680554611119,0.010793,27795.0,27791.0,0.38838]
[1680554611352,0.010793,27795.0,27792.0,0.012]
[1680554611600,0.0017,27793.0,27792.0,0.012]
[1680554611837,0.010794,27793.0,27792.0,0.01176256]
[1680554612033,0.010794,27793.0,27788.0,0.35]
[1680554612268,0.14189681,27793.0,27789.0,0.034542]
[1680554612473,0.012494,27794.0,27789.0,0.034542]
[1680554612687,0.012494,27794.0,27792.0,0.012]
[1680554612936,0.012494,27794.0,27788.0,0.7295]
[1680554613134,0.15439081,27794.0,27789.0,0.061626]
[1680554613344,0.012494,27794.0,27789.0,0.028]
[1680554613959,0.03077366,27793.0,27789.0,0.028]
[1680554614180,0.03077366,27793.0,27790.0,0.036335]
[1680554614380,0.03077366,27793.0,27788.0,0.7295]
[1680554614381,0.03077366,27793.0,27792.0,0.012]
[1680554614582,0.03077366,27793.0,27788.0,0.7295]
[1680554614781,0.17267047,27793.0,27789.0,0.058884]
[1680554614955,0.03077366,27793.0,27788.0,0.72968]
[1680554615174,0.03077366,27793.0,27792.0,0.005]
[1680554615442,0.03077366,27793.0,27788.0,0.7295]
[1680554615664,0.03077366,27793.0,27789.0,0.060068]
[1680554615665,0.17267047,27793.0,27789.0,0.060068]
[1680554615872,0.012674,27794.0,27789.0,0.025]
[1680554616098,0.012494,27794.0,27789.0,0.025]
[1680554616538,0.012494,27794.0,27788.0,0.7295]
[1680554616750,0.14359681,27794.0,27788.0,0.86968]
[1680554616965,0.03077366,27793.0,27790.0,0.3795]
[1680554617194,0.03077366,27793.0,27791.0,0.033902]
[1680554617408,0.03077366,27793.0,27792.0,0.005]
[1680554617612,0.03077366,27793.0,27792.0,0.03312]
[1680554617860,0.00018,27796.0,27792.0,0.43312]
[1680554618099,0.0017,27798.0,27793.0,0.74642583]
[1680554618100,0.00018,27798.0,27793.0,0.74642583]
[1680554618315,0.0017,27800.0,27794.0,0.033647]
[1680554618551,0.00188,27800.0,27795.0,0.14]
[1680554618772,0.0017,27798.0,27794.0,0.4]
[1680554618996,0.0017,27798.0,27793.0,0.3882]
[1680554618997,0.14359681,27798.0,27793.0,0.7677]
[1680554619266,0.14359681,27798.0,27794.0,0.428]
[1680554619512,0.00188,27798.0,27794.0,0.428]
[1680554619758,0.0017,27798.0,27794.0,0.428]
[1680554620186,0.0017,27798.0,27794.0,0.4]
[1680554620833,0.03106181,27797.0,27794.0,0.418]
[1680554621281,0.03106181,27797.0,27795.0,0.034163]
[1680554621937,0.012492,27799.0,27795.0,0.034163]
[1680554622161,0.012492,27799.0,27793.0,0.3882]
[1680554622384,0.15438881,27799.0,27793.0,0.9077]
[1680554622599,0.15456881,27799.0,27793.0,0.9077]
[1680554622810,0.15456881,27799.0,27794.0,0.3]
[1680554623068,0.03109469,27798.0,27795.0,0.011]
[1680554623285,0.03109469,27798.0,27794.0,0.14]
[1680554623500,0.03109469,27798.0,27793.0,0.7927]
[1680554623716,0.03109469,27798.0,27793.0,0.7677]
[1680554623941,0.03109469,27798.0,27795.0,0.011]
[1680554624428,0.03109469,27798.0,27794.0,0.4]
[1680554625176,0.03109469,27798.0,27795.0,0.011]
[1680554625856,0.03109469,27798.0,27794.0,0.4]
[1680554626545,0.03109469,27798.0,27795.0,0.011]
[1680554626990,0.03109469,27798.0,27794.0,0.4]
[1680554627204,0.03109469,27798.0,27794.0,0.418]
[1680554627433,0.03109469,27798.0,27793.0,1.1677]
[1680554627680,0.03109469,27798.0,27795.0,0.011]
[1680554627681,0.14359681,27797.0,27795.0,0.011]
[1680554627939,0.034664,27796.0,27791.0,0.5097]
[1680554628159,0.14189681,27795.0,27791.0,0.5097]
[1680554628371,0.010793,27794.0,27791.0,0.5097]
[1680554628591,0.15286981,27795.0,27791.0,0.5097]
[1680554628808,0.00141496,27793.0,27791.0,0.5097]
[1680554629628,0.00141496,27793.0,27792.0,0.034178]
[1680554629824,0.00018,27796.0,27792.0,0.034178]
[1680554629825,0.00018,27796.0,27792.0,1.1677]
[1680554630033,0.00018,27796.0,27792.0,1.3077]
[1680554630240,0.00018,27796.0,27792.0,1.1677]
[1680554630654,0.00012432,27799.0,27795.0,0.0857]
[1680554630894,0.00012432,27805.0,27797.0,0.465]
[1680554631106,0.00012432,27805.0,27799.0,0.3795]
[1680554631300,0.09514235,27806.0,27800.0,0.14]
[1680554631501,0.01091332,27806.0,27800.0,0.14]
[1680554631702,0.01091332,27806.0,27800.0,0.54]
[1680554632161,0.08605335,27807.0,27800.0,0.165]
[1680554632366,1.29473241,27806.0,27800.0,0.165]
[1680554632568,1.44741822,27806.0,27800.0,0.165]
[1680554632771,0.14189681,27806.0,27800.0,0.165]
[1680554633031,0.45268581,27806.0,27800.0,0.165]
[1680554634911,0.45268581,27806.0,27800.0,0.025]
[1680554635125,0.45268581,27806.0,27800.0,0.165]
[1680554635800,0.53691484,27806.0,27800.0,0.165]
[1680554636057,0.53691484,27806.0,27800.0,0.025]
[1680554636253,0.53691484,27806.0,27800.0,0.165]
[1680554636731,0.53691484,27806.0,27800.0,0.025]
[1680554637260,0.53691484,27806.0,27800.0,0.165]
[1680554638177,0.68379263,27806.0,27800.0,0.025]
[1680554638406,0.4,27805.0,27800.0,0.025]
[1680554638642,0.55268581,27805.0,27800.0,0.025]
[1680554638878,0.0017,27803.0,27800.0,0.025]
[1680554639340,0.02592,27803.0,27800.0,0.025]
[1680554639817,0.02592,27803.0,27798.0,0.00018]
[1680554640043,0.15438681,27803.0,27798.0,0.00018]
[1680554640506,0.04054768,27802.0,27798.0,0.00018]
[1680554640761,0.0017,27800.0,27798.0,0.00018]
[1680554640986,0.032374,27799.0,27797.0,0.00018]
[1680554641211,0.02381,27798.0,27797.0,0.00018]
[1680554641444,0.034602,27798.0,27794.0,0.00018]
[1680554641679,0.14189681,27797.0,27794.0,0.00018]
[1680554641919,0.010792,27796.0,27794.0,0.00012]
[1680554642169,0.010792,27796.0,27793.0,0.00018]
[1680554642170,0.14189681,27795.0,27793.0,0.00018]
[1680554642431,0.057515,27794.0,27793.0,0.00018]
[1680554642662,0.057515,27794.0,27792.0,0.00043279]
[1680554642890,0.026251,27793.0,27792.0,0.00043279]
[1680554643118,0.037045,27793.0,27792.0,0.00043279]
[1680554643599,0.04555753,27793.0,27792.0,0.00043279]
[1680554644328,0.07043235,27793.0,27792.0,0.00043279]
[1680554644559,0.25734235,27793.0,27792.0,0.00143279]
[1680554644794,0.63457138,27793.0,27792.0,0.00043279]
[1680554645218,1.04457138,27793.0,27792.0,0.00243279]
[1680554645221,1.03457138,27793.0,27792.0,0.00043279]
[1680554645446,0.96034235,27793.0,27792.0,0.00243279]
[1680554645690,0.96034235,27793.0,27792.0,0.00043279]
[1680554645691,0.95034235,27793.0,27792.0,0.00043279]
[1680554647082,0.96175731,27793.0,27792.0,0.00243279]
[1680554647330,0.95175731,27793.0,27792.0,0.00043279]
[1680554647605,0.96175731,27793.0,27792.0,0.00243279]
[1680554647824,0.96175731,27793.0,27792.0,0.00043279]
[1680554647825,0.95175731,27793.0,27792.0,0.00043279]
[1680554648053,0.96175731,27793.0,27792.0,0.00243279]
[1680554648286,0.95175731,27793.0,27792.0,0.00043279]
[1680554648506,0.95175731,27793.0,27792.0,0.00243279]
[1680554648507,0.96175731,27793.0,27792.0,0.00243279]
[1680554650151,0.37333478,27793.0,27792.0,0.00243279]
[1680554650855,0.37333478,27793.0,27792.0,0.00233506]
[1680554651083,0.37333478,27793.0,27792.0,0.00219356]
[1680554651319,0.36333478,27793.0,27792.0,0.00019356]
[1680554651585,0.36333478,27793.0,27792.0,0.00219356]
[1680554651586,0.37333478,27793.0,27792.0,0.00219356]
[1680554652038,0.37333478,27793.0,27792.0,0.00205489]
[1680554652973,0.37333478,27793.0,27792.0,0.001919]
[1680554653877,0.37333478,27793.0,27792.0,0.00178583]
[1680554655031,0.37333478,27793.0,27792.0,0.00165532]
[1680554655032,0.37163478,27793.0,27792.0,0.00165532]
[1680554655992,0.36084078,27793.0,27792.0,0.00152742]
[1680554656244,0.06084078,27793.0,27792.0,0.00152742]
[1680554656999,0.06084078,27793.0,27792.0,0.00140208]
[1680554660133,0.06912838,27793.0,27792.0,0.00140208]
[1680554662990,0.04457738,27793.0,27792.0,0.00140208]
[1680554663498,0.04457738,27793.0,27792.0,0.43905008]
[1680554663729,0.04457738,27793.0,27792.0,0.43923008]
[1680554663998,0.01,27793.0,27792.0,0.43923008]
[1680554664286,0.01,27793.0,27792.0,0.92633008]
[1680554664550,0.010792,27799.0,27792.0,0.924928]
[1680554664830,0.010792,27799.0,27793.0,0.14]
[1680554664831,0.01091632,27799.0,27793.0,0.14]
[1680554665348,0.31091632,27799.0,27793.0,0.14]
[1680554665625,0.30112432,27799.0,27793.0,0.14]
[1680554665901,0.30012432,27799.0,27793.0,0.14]
[1680554666170,0.44302113,27799.0,27793.0,0.159]
[1680554666435,0.00112432,27799.0,27794.0,0.3795]
[1680554666694,0.00112432,27799.0,27794.0,0.77413562]
[1680554667205,0.001,27799.0,27794.0,0.77413562]
[1680554667487,0.01091432,27802.0,27795.0,0.433622]
[1680554667770,0.001,27799.0,27796.0,0.14]
[1680554668060,0.001,27799.0,27795.0,0.4]
[1680554668554,0.01079,27802.0,27796.0,0.034297]
[1680554668839,0.01079,27802.0,27797.0,0.14]
[1680554669375,0.01091432,27802.0,27797.0,0.14]
[1680554669942,0.00012432,27802.0,27797.0,0.5195]
[1680554670203,0.15281113,27802.0,27795.0,0.406]
[1680554670468,0.14189681,27801.0,27795.0,0.4]
[1680554670731,0.15281213,27801.0,27797.0,0.001]
[1680554671229,0.01091532,27801.0,27797.0,0.001]
[1680554671507,0.010791,27801.0,27795.0,0.4]
[1680554671778,0.15268781,27801.0,27795.0,0.406]
[1680554672027,0.15981213,27801.0,27797.0,0.001]
[1680554672317,0.01791532,27801.0,27797.0,0.001]
[1680554672533,0.010791,27801.0,27795.0,0.54]
[1680554672784,0.15268781,27801.0,27795.0,0.54]
[1680554673049,0.15281213,27801.0,27795.0,0.54]
[1680554673615,0.15281213,27801.0,27795.0,0.546]
[1680554673830,0.17025134,27801.0,27795.0,0.406]
[1680554674090,0.17025134,27801.0,27795.0,0.546]
[1680554676414,0.17025134,27801.0,27795.0,0.406]
[1680554676843,0.17025134,27801.0,27795.0,0.546]
[1680554677568,0.01702513,27800.0,27795.0,0.146]
[1680554677805,0.02781613,27800.0,27795.0,0.006]
[1680554678016,0.01702513,27800.0,27795.0,0.006]
[1680554678245,0.02781613,27800.0,27795.0,0.006]
[1680554678953,0.16971294,27800.0,27794.0,0.62844762]
[1680554679184,0.01698373,27799.0,27794.0,0.62844762]
[1680554679398,0.14189681,27799.0,27795.0,0.006]
[1680554679613,0.01091532,27800.0,27794.0,0.62844762]
[1680554679837,0.15368781,27800.0,27794.0,0.012]
[1680554680129,0.15381213,27800.0,27794.0,0.152]
[1680554680350,0.15381213,27800.0,27794.0,0.14]
[1680554680351,0.18956044,27800.0,27794.0,0.14]
[1680554680585,0.20035144,27800.0,27795.0,0.006]
[1680554680803,0.05845463,27800.0,27795.0,0.006]
[1680554681029,0.04753931,27800.0,27795.0,0.006]
[1680554681264,0.00012432,27801.0,27795.0,0.146]
[1680554681719,0.01091532,27801.0,27795.0,0.14]
[1680554681963,0.001,27800.0,27795.0,0.14]
[1680554682180,0.15281213,27801.0,27795.0,0.3]
[1680554682408,0.15281213,27801.0,27795.0,0.446]
[1680554682684,0.05619653,27801.0,27793.0,0.40018]
[1680554682915,0.14189681,27800.0,27795.0,0.006]
[1680554683128,0.14189681,27800.0,27793.0,0.54]
[1680554683129,0.15281213,27800.0,27793.0,0.54]
[1680554683359,0.14189681,27799.0,27795.0,0.006]
[1680554683595,0.01091532,27800.0,27795.0,0.006]
[1680554683824,0.010791,27800.0,27795.0,0.006]
[1680554685306,0.010791,27800.0,27795.0,0.146]
[1680554685794,0.010791,27800.0,27795.0,0.006]
[1680554686307,0.01856875,27800.0,27795.0,0.006]
[1680554686983,0.010791,27800.0,27795.0,0.006]
[1680554687920,0.01068042,27800.0,27795.0,0.006]
[1680554688148,0.010791,27801.0,27795.0,0.006]
[1680554688392,0.010791,27800.0,27795.0,0.146]
[1680554688645,0.010791,27800.0,27795.0,0.006]
[1680554688927,0.15268781,27800.0,27795.0,0.006]
[1680554689153,0.15268781,27800.0,27793.0,0.00018]
[1680554689379,0.14189681,27799.0,27795.0,0.006]
[1680554689607,0.024577,27798.0,27795.0,0.006]
[1680554690079,0.024577,27798.0,27794.0,0.00018]
[1680554690313,0.010791,27799.0,27795.0,0.006]
[1680554690564,0.010791,27799.0,27794.0,0.00018]
[1680554690790,0.010791,27800.0,27795.0,0.006]
[1680554691014,0.010791,27800.0,27795.0,0.14]
[1680554691238,0.010791,27800.0,27795.0,0.14618]
[1680554691478,0.0540283,27800.0,27795.0,0.14618]
[1680554691720,0.0432373,27800.0,27795.0,0.14618]
[1680554691943,0.0432373,27800.0,27795.0,0.00018]
[1680554692161,0.4,27802.0,27795.0,0.146]
[1680554692385,0.41079,27802.0,27796.0,0.14]
[1680554693536,0.55268681,27802.0,27796.0,0.14]
[1680554693761,0.55368681,27802.0,27796.0,0.14]
[1680554694451,0.55268681,27802.0,27796.0,0.14]
[1680554694674,0.55368681,27802.0,27796.0,0.159]
[1680554694899,0.55268681,27802.0,27796.0,0.14]
[1680554695126,0.08743921,27801.0,27796.0,0.159]
[1680554695370,0.08743921,27801.0,27796.0,0.019]
[1680554695874,0.55368681,27802.0,27796.0,0.019]
[1680554696092,0.55268681,27802.0,27796.0,0.14]
[1680554696322,0.001,27801.0,27796.0,0.159]
[1680554696541,0.001,27801.0,27796.0,0.019]
[1680554700434,0.14289681,27801.0,27796.0,0.019]
[1680554700664,0.001,27801.0,27796.0,0.019]
[1680554700889,0.08061433,27801.0,27796.0,0.019]
[1680554702690,0.01179,27801.0,27796.0,0.019]
[1680554702945,0.15368681,27801.0,27796.0,0.019]
[1680554703347,0.16611981,27800.0,27796.0,0.019]
[1680554703526,1.58333888,27800.0,27796.0,0.019]
[1680554703787,0.456244,27799.0,27796.0,0.019]
[1680554704051,1.51950115,27798.0,27796.0,0.019]
[1680554704344,0.31044273,27797.0,27796.0,0.019]
[1680554704809,0.61044273,27797.0,27792.0,0.00043301]
[1680554705030,0.72850654,27797.0,27796.0,0.006]
[1680554705261,0.3,27796.0,27792.0,0.00043301]
[1680554705488,0.1352468,27795.0,27792.0,0.00043301]
[1680554705719,0.023537,27794.0,27792.0,0.00043301]
[1680554705972,0.010794,27793.0,27792.0,0.00143301]
[1680554706195,0.034331,27793.0,27792.0,0.00143301]
[1680554706436,0.034331,27793.0,27792.0,0.00043301]
[1680554706660,0.08775908,27793.0,27792.0,0.00043301]
[1680554706897,0.08775908,27793.0,27792.0,0.00143301]
[1680554707577,0.08775908,27793.0,27792.0,0.00043301]
[1680554707804,0.49475908,27793.0,27792.0,0.00143301]
[1680554708044,0.48775908,27793.0,27792.0,0.00043301]
[1680554708280,0.49975908,27793.0,27792.0,0.00243301]
[1680554709242,0.95998011,27793.0,27792.0,0.00232297]
[1680554709722,1.21687568,27793.0,27792.0,0.00232297]
[1680554709984,1.04413568,27793.0,27792.0,0.00232297]
[1680554710211,1.21687568,27793.0,27792.0,0.00232297]
[1680554710435,1.20487568,27793.0,27792.0,0.00032297]
[1680554710682,1.20487568,27793.0,27792.0,0.00132297]
[1680554710683,1.18596938,27793.0,27792.0,0.00132297]
[1680554710904,1.18596938,27793.0,27792.0,0.00032297]
[1680554710905,1.15896938,27793.0,27792.0,0.00032297]
[1680554711132,1.27448035,27793.0,27792.0,0.00132297]
[1680554711355,1.0591402,27793.0,27792.0,0.00132297]
[1680554712023,0.89891917,27793.0,27792.0,0.00132297]
[1680554713384,0.81468562,27793.0,27792.0,0.00132297]
[1680554715903,0.98742562,27793.0,27792.0,0.00132297]
[1680554716129,0.99592562,27793.0,27792.0,0.00132297]
[1680554716428,1.19592562,27793.0,27792.0,0.00132297]
[1680554717307,1.97542562,27793.0,27792.0,0.00132297]
[1680554720967,1.97554994,27793.0,27792.0,0.00132297]
[1680554721469,1.94854994,27793.0,27792.0,0.00032297]
[1680554721709,1.97554994,27793.0,27792.0,0.00032297]
[1680554722613,1.94854994,27793.0,27792.0,0.00032297]
[1680554722871,1.97554994,27793.0,27792.0,0.00032297]
[1680554723100,1.94854994,27793.0,27792.0,0.00032297]
[1680554723323,1.97549908,27793.0,27792.0,0.00032297]
[1680554723541,1.94849908,27793.0,27792.0,0.00032297]
[1680554723817,1.97549908,27793.0,27792.0,0.00032297]
[1680554726138,1.97549908,27793.0,27787.0,0.0207]
[1680554726139,1.1,27789.0,27787.0,0.0207]
[1680554726391,0.100999,27788.0,27787.0,0.0207]
[1680554726939,0.800999,27788.0,27787.0,0.0207]
[1680554727228,0.400999,27788.0,27787.0,0.0207]
[1680554727720,0.427999,27788.0,27787.0,0.0207]
[1680554728022,0.827999,27788.0,27787.0,0.0207]
[1680554728315,1.32508709,27788.0,27787.0,0.0207]
[1680554728598,1.49782709,27788.0,27787.0,0.0207]
[1680554729142,1.47082709,27788.0,27787.0,0.0207]
[1680554729144,1.49782709,27788.0,27787.0,0.0207]
[1680554729567,1.47082709,27788.0,27787.0,0.0207]
[1680554729568,1.49782709,27788.0,27787.0,0.0207]
[1680554729799,1.85032709,27788.0,27787.0,0.0207]
[1680554729946,1.87732709,27788.0,27787.0,0.0207]
[1680554730782,2.33217935,27788.0,27787.0,0.0207]
[1680554732863,2.33317659,27788.0,27787.0,0.0207]
[1680554733094,2.38247461,27788.0,27787.0,0.01567048]
[1680554733311,2.38204167,27788.0,27787.0,0.01567048]
[1680554733528,2.38204167,27788.0,27787.0,0.01561048]
[1680554733769,0.59511,27787.0,27786.0,0.01839049]
[1680554734004,1.39980221,27787.0,27786.0,0.01839049]